Cogmind - Beta 10.2 *** ADVENTURER MODE // 2021.06.26 @ 16:35:37 Player: Nomiddlename303 Result: Self-destructed Performance ------------- Evolutions (9) 4500 Regions Visited (25) 5000 Robots Destroyed (281) 1405 Value Destroyed (16160) 16160 Prototype IDs (67) 1340 Alien Tech Used (2) 400 Bonus (20015) 20015 TOTAL SCORE: 48820 Bonus ------- High Alert Combat Kills 134 Follower Combat Kills 1555 Met Imprinter 300 Met Zhirov 300 A7 Reached Mainframe 300 Acquired SGEMP 2000 Delivered SGEMP 2000 Destroyed MAIN.C Guards 500 Met MAIN.C 5000 Destroyed MAIN.C Shell 5000 Zhirov Destroyed MAIN.C 3000 Met Architect 300 Destroyed A8 300 Destroyed A6 400 Friendly Fire -1074 Cogmind --------- Core Integrity 371/1600 Matter 11/300 Energy 1950/1950 System Corruption 16% Temperature Cool (0) Movement Rolling (130) Ox4 Location -1/Access_0 Parts ------- > --- POWER (1) -------- Improved Quantum Reactor > --- PROPULSION (4) --- Armored Heavy Treads Armored Wheel Centrium Wheel > --- UTILITY (16) ----- Advanced Coolant Injector High-capacity Storage Unit High-capacity Storage Unit High-capacity Storage Unit Improved Energy Well Experimental Energy Well Advanced Sensor Array Experimental Targeting Computer Experimental Target Analyzer Experimental Core Analyzer Quantum Capacitor Centrium Medium Armor Plating > --- WEAPON (4) ------- (None) > --- INVENTORY (28) --- Biometal Heavy Treads Armored Wheel Centrium Wheel Experimental Matter Compressor (0) Heavy Disruptor Cannon Heavy Gauss Cannon Heavy Gauss Cannon Fusion Bomb Launcher CR-A16's Behemoth Slayer Peak State ------------ > --- POWER ------------ Quantum Reactor > --- PROPULSION ------- High-density Centrium Heavy Treads Centrium Wheel High-density Centrium Wheel > --- UTILITY ---------- 2N-1CE's Frost Array High-capacity Storage Unit High-capacity Storage Unit High-capacity Storage Unit Experimental Energy Well Enhanced Optical Array Experimental Targeting Computer Experimental Target Analyzer Experimental Core Analyzer Experimental Core Analyzer Improved Armor Integrity Analyzer Advanced Particle Accelerator Medium Regenerative Plating SHELL Armor > --- WEAPON ----------- Heavy Quantum Rifle Enhanced Nova Cannon Omega Cannon > --- INVENTORY -------- Reinforced Antimatter Reactor Biometal Heavy Treads Experimental Biometal Heavy Treads Armored Wheel Armored Wheel Centrium Wheel Centrium Wheel Advanced Coolant Injector High-capacity Storage Unit Experimental Matter Compressor Advanced Sensor Array Quantum Capacitor Transdimensional Reconstructor Heavy Tesla Rifle Heavy Disruptor Cannon Heavy Disruptor Cannon Null Cannon Heavy Gauss Cannon Heavy Gauss Cannon Heavy Hardcell Cannon Fusion Bomb Launcher CR-A16's Behemoth Slayer [Rating: 226] Favorites ----------- Power Quantum Reactor Engine Heavy Deuterium Engine Power Core Neutrino Core Reactor Quantum Reactor Propulsion Medium Treads Treads Medium Treads Wheel Armored Wheel Flight Unit Improved VTOL Module Utility High-capacity Storage Unit Device Advanced Sensor Array Storage High-capacity Storage Unit Processor Enhanced Optical Array Hackware Hacking Suite Protection Centrium Medium Armor Plating Weapon Heavy EM Shotgun Energy Gun Heavy EM Shotgun Energy Cannon Improved EM Pulse Cannon Ballistic Gun Flak Gun Ballistic Cannon Light Cannon Launcher Fusion Bomb Launcher Special Weapon Advanced Remote Datajack Impact Weapon Heavy Hammer Slashing Weapon Great Axe Piercing Weapon CR-A16's Behemoth Slayer Build | -11 -10 -9 -8 -7 -7 -7 -7 -6 -6 -5 -5 -5 -5 -5 -4 -4 -4 -4 -3 -3 -3 -2 -1 -1 -1 ------- Run | Scr Mat Mat Mat Fac Low Low Zio Pro Fac Fac Ext Cet Arc Hub Fac Upp Upp Zhi Pro Res Tes Res Acc Com Ac0 Slots Evolved 18 | . . 2 2 2 . . . . 2 2 . . . . 2 . . . . 2 . 2 2 . . Power . | . . . . . . . . . . . . . . . . . . . . . . . . . . Propulsion 2 | . . . 1 1 . . . . . . . . . . . . . . . . . . . . . Utility 14 | . . 1 1 1 . . . . 2 2 . . . . 2 . . . . 2 . 1 2 . . Weapon 2 | . . 1 . . . . . . . . . . . . . . . . . . . 1 . . . Parts Attached 409 | 7 11 12 15 45 8 . 3 10 17 22 23 6 . . 18 8 7 3 19 21 36 18 14 70 16 Power 31 | 1 2 2 1 3 . . . . 1 1 1 . . . 5 . . . 5 2 1 1 . 4 1 Engine 11 | 1 2 2 1 3 . . . . 1 . . . . . 1 . . . . . . . . . . Core 6 | . . . . . . . . . . 1 1 . . . 4 . . . . . . . . . . Reactor 14 | . . . . . . . . . . . . . . . . . . . 5 2 1 1 . 4 1 Propulsion 51 | 2 3 2 5 11 . . . . 4 4 3 1 . . . 2 . . 2 3 . 1 2 3 3 Treads 24 | . . . 3 5 . . . . 3 2 3 1 . . . . . . 2 . . 1 1 2 1 Leg . | . . . . . . . . . . . . . . . . . . . . . . . . . . Wheel 26 | 2 3 2 1 6 . . . . 1 2 . . . . . 2 . . . 3 . . 1 1 2 Hover . | . . . . . . . . . . . . . . . . . . . . . . . . . . Flight 1 | . . . 1 . . . . . . . . . . . . . . . . . . . . . . Utility 146 | 2 4 2 4 10 2 . 3 3 4 9 5 1 . . 8 4 2 3 4 7 16 10 3 36 4 Device 67 | . . . . 2 2 . 3 2 3 2 2 . . . 4 3 2 1 2 3 6 4 2 21 3 Storage 30 | 2 4 . 3 6 . . . . . 2 . . . . 1 . . . . . 4 2 1 4 1 Processor 15 | . . . . 2 . . . . 1 1 2 . . . . . . . . . . 4 . 5 . Hackware 1 | . . . 1 . . . . . . . . . . . . . . . . . . . . . . Protection 33 | . . 2 . . . . . 1 . 4 1 1 . . 3 1 . 2 2 4 6 . . 6 . Artifact . | . . . . . . . . . . . . . . . . . . . . . . . . . . Weapon 181 | 2 2 6 5 21 6 . . 7 8 8 14 4 . . 5 2 5 . 8 9 19 6 9 27 8 Energy Gun 34 | . . . 2 7 2 . . 2 1 2 2 2 . . 1 1 1 . 1 3 3 3 . 1 . Energy Cannon 55 | . . . . 4 3 . . 1 1 1 2 1 . . 2 . 2 . 4 2 10 1 3 14 4 Ballistic Gun 26 | 2 . 1 3 4 1 . . 1 1 3 3 1 . . 1 . . . . 2 1 . . 1 1 Ballistic Cannon 29 | . 2 3 . 1 . . . 1 2 . . . . . 1 . . . 1 1 3 2 3 6 3 Launcher 6 | . . . . . . . . . 1 . . . . . . . 2 . . 1 1 . . 1 . Special Weapon 12 | . . . . . . . . 1 . . 6 . . . . . . . 1 . . . 3 1 . Impact Weapon 2 | . . 2 . . . . . . . . . . . . . . . . . . . . . . . Slashing Weapon 5 | . . . . 5 . . . . . . . . . . . . . . . . . . . . . Piercing Weapon 12 | . . . . . . . . 1 2 2 1 . . . . 1 . . 1 . 1 . . 3 . Special Melee Weapon . | . . . . . . . . . . . . . . . . . . . . . . . . . . Unidentified Prototypes 49 | . . . 2 1 . . . 1 . 1 . 4 . . 1 . . 2 . 4 14 3 . 16 . Parts Lost 39 | . . . . 1 . . . 1 1 1 3 . . . . 1 . . 4 . . 1 . 11 15 Power 4 | . . . . . . . . . 1 . . . . . . . . . 1 . . . . 1 1 Propulsion 5 | . . . . . . . . . . . 1 . . . . 1 . . 1 . . . . . 2 Utility 13 | . . . . . . . . . . 1 2 . . . . . . . 1 . . . . 4 5 Weapon 17 | . . . . 1 . . . 1 . . . . . . . . . . 1 . . 1 . 6 7 Highest Loss Streak 9 | . . . . 1 . . . 1 1 1 2 . . . . 1 . . 4 . . 1 . 8 9 Average Slot Usage (%) 90 | . 100 99 100 99 92 92 91 91 93 88 93 88 88 88 88 91 94 94 94 92 84 81 82 81 77 Engine 3 | . 14 11 9 7 7 7 7 7 6 1 . . . . . . . . . . . . . . . Core 1 | . . . . . . . . . . 3 5 5 5 5 4 5 5 5 . . . . . . . Reactor 1 | . . . . . . . . . . . . . . . . . . . 4 3 4 4 4 4 3 Treads 8 | . . . 8 14 15 15 15 15 13 11 10 5 5 5 5 5 5 5 5 4 4 4 4 4 4 Wheel 9 | . 28 22 18 14 7 7 7 7 6 4 5 5 5 5 5 7 10 10 10 8 9 8 8 8 8 Device 8 | . . . . 6 7 7 6 5 13 8 6 5 5 5 6 9 10 10 8 14 9 11 14 11 9 Storage 21 | . 28 22 27 23 23 23 23 23 20 19 23 23 23 23 21 21 21 21 21 19 19 18 20 17 17 Processor 11 | . . . . 6 7 7 7 7 13 11 15 17 17 17 15 15 15 15 15 14 14 13 12 17 16 Protection 4 | . . 10 7 . . . . 1 . 5 4 5 5 5 13 10 10 10 11 11 8 4 4 6 8 Energy Gun 4 | . . . 3 11 4 7 7 5 1 4 4 4 5 5 3 2 4 5 2 . 1 3 . 2 . Energy Cannon 4 | . . . . 3 11 7 7 2 2 2 3 5 5 5 3 . 5 10 9 5 8 11 8 3 3 Ballistic Gun 3 | . 5 . 14 4 5 7 7 6 4 5 5 4 5 5 5 10 3 . . 2 . . . . 4 Ballistic Cannon 3 | . 22 29 7 . . . . 1 5 . . . . . 2 . . . 2 3 2 1 6 3 2 Naked Turns . | . . . . . . . . . . . . . . . . . . . . . . . . . . Heaviest Build 227 | 15 59 69 88 123 129 123 123 128 131 145 143 147 144 144 162 151 159 155 172 178 183 212 216 227 205 Greatest Support 70 | 32 32 24 24 50 28 28 28 28 56 56 56 28 28 28 28 28 28 28 28 70 36 36 36 60 36 Greatest Overweight (x) 13 | . 4 2 4 8 4 4 4 4 4 5 5 5 5 5 5 9 5 5 6 13 5 5 5 6 7 Average Overweight (x) 4 | . 1 2 3 3 4 4 4 3 3 3 4 4 5 5 5 5 5 5 5 6 4 5 5 4 5 Largest Inventory Capacity 36 | 8 18 18 24 28 28 28 28 28 28 28 28 28 28 28 28 28 28 28 28 28 28 28 28 36 28 Average Capacity 26 | 6 15 18 23 24 28 28 28 28 28 28 28 28 28 28 28 28 28 28 28 28 28 28 28 28 28 Most Carried 28 | 8 17 18 24 28 28 28 28 28 28 28 28 28 28 28 28 28 28 28 28 28 28 28 28 28 27 Average Carried 26 | 3 15 17 20 24 27 28 27 27 27 27 27 27 28 28 27 27 28 27 26 27 27 27 27 26 21 Final Capacity 28 | 8 18 18 24 28 28 28 28 28 28 28 28 28 28 28 28 28 28 28 28 28 28 28 28 28 28 Final Carried 28 | 8 17 18 23 28 28 28 28 27 28 26 28 28 28 28 28 28 28 28 25 28 28 28 28 27 11 Class Distribution -------------------- 33% | Hauler-Mutant 21% | Hauler-Gunner 20% | Hauler-Skirmisher 4% | Scavenger-Gunner 4% | Mutant 4% | Hauler-Tank 3% | Commander-Gunner 3% | Scavenger-Mutant Dominant Class ---------------- Mutant | -10/Materials Tank | -9/Materials Hauler-Tank | -8/Materials Hauler-Skirmisher | -7/Factory Hauler-Skirmisher | -7/Lower Caves Hauler-Skirmisher | -7/Lower Caves Hauler-Skirmisher | -7/Zion Hauler-Mutant | -6/Proximity Caves Hauler-Mutant | -6/Factory Hauler-Mutant | -5/Factory Hauler-Gunner | -5/Extension Commander-Gunner | -5/Cetus Commander-Gunner | -5/Archives Commander-Gunner | -5/Hub_04(d) Scavenger-Tank | -4/Factory Scavenger-Gunner | -4/Upper Caves Scavenger-Gunner | -4/Upper Caves Scavenger-Gunner | -4/Zhirov Scavenger-Mutant | -3/Proximity Caves Hauler-Tank | -3/Research Hauler-Gunner | -3/Testing Hauler-Gunner | -2/Research Hauler-Gunner | -1/Access Hauler-Mutant | -1/Command Hauler-Gunner | -1/Access_0 Resources | -11 -10 -9 -8 -7 -7 -7 -7 -6 -6 -5 -5 -5 -5 -5 -4 -4 -4 -4 -3 -3 -3 -2 -1 -1 -1 ----------- Run | Scr Mat Mat Mat Fac Low Low Zio Pro Fac Fac Ext Cet Arc Hub Fac Upp Upp Zhi Pro Res Tes Res Acc Com Ac0 Matter Collected 10874 | 269 219 585 377 885 132 30 20 269 232 320 1026 82 27 24 291 128 104 . 487 387 865 451 340 2335 989 Remotely . | . . . . . . . . . . . . . . . . . . . . . . . . . . Salvage Created 17478 | 77 285 392 507 1407 214 75 . 375 377 1507 1074 150 . . 993 187 267 . 1117 601 1394 622 376 4496 985 Parts 716 | 3 27 36 31 71 5 2 . 12 22 69 38 7 . . 24 7 6 . 46 41 55 25 17 128 44 Haulers Intercepted 8 | . 2 1 2 1 . . . . 1 . . . . . 1 . . . . . . . . . . Recyclers Shooed 5 | . 1 . 1 2 . . . . . . 1 . . . . . . . . . . . . . . Parts Field Recycled . | . . . . . . . . . . . . . . . . . . . . . . . . . . Retrieved Matter . | . . . . . . . . . . . . . . . . . . . . . . . . . . Parts Self-Destructed 51 | . . . . . 2 . . 10 . . . . . . . 5 4 . 30 . . . . . . Prevented 29 | . . . . . 3 2 . 1 . . . . . . . . 6 . 17 . . . . . . Kills | -11 -10 -9 -8 -7 -7 -7 -7 -6 -6 -5 -5 -5 -5 -5 -4 -4 -4 -4 -3 -3 -3 -2 -1 -1 -1 ------- Run | Scr Mat Mat Mat Fac Low Low Zio Pro Fac Fac Ext Cet Arc Hub Fac Upp Upp Zhi Pro Res Tes Res Acc Com Ac0 Combat Hostiles Destroyed 238 | . 10 16 15 20 3 1 . 6 8 21 14 1 . . 11 2 5 . 16 12 24 12 6 23 12 Melee 5 | . . 1 . . . . . . 3 1 . . . . . . . . . . . . . . . Guns 60 | . 1 . 10 8 . 1 . 3 . 12 10 1 . . 5 1 . . 1 4 . 2 . . 1 Cannons 127 | . 9 15 5 8 2 . . 2 1 5 4 . . . 6 . 1 . 13 3 17 9 6 12 9 AOE 23 | . . . . 3 . . . 1 4 . . . . . . . 2 . . 5 3 . . 5 . Classes Destroyed 19 | 1 4 3 1 2 1 . . 1 2 . . . . . . 1 . . . . 3 . . . . Worker 4 | . . . . . . . . . 2 . . . . . . . . . . . 1 . 1 . . Builder 6 | . . . 2 . . . . . . 1 3 . . . . . . . . . . . . . . Tunneler 1 | . . . . . . . . . 1 . . . . . . . . . . . . . . . . Hauler 8 | . 2 1 2 1 . . . . 1 . . . . . 1 . . . . . . . . . . Recycler 5 | 1 . . . 2 . . . . . . . . . . . . . . . . 2 . . . . Operator 4 | . . 1 . 2 . . . . . . . . . . . . . . . . 1 . . . . Watcher 11 | . 1 . . 2 . . . . . 4 2 . . . . . . . . 1 . 1 . . . Swarmer 39 | . 6 7 9 . . . . . 4 . . . . . . . 2 . 3 5 3 . . . . Grunt 68 | . 4 4 5 3 . . . 1 1 9 9 1 . . 4 . 2 . 9 . 4 . 3 9 . Brawler 3 | . . 1 1 . . . . . 1 . . . . . . . . . . . . . . . . Duelist 3 | . . . . . 2 . . . . . . . . . . . . . 1 . . . . . . Researcher 1 | . . . . . . . . . . . . . . . . . . . . . 1 . . . . Sentry 35 | . . 4 . 7 1 1 . . 1 4 4 . . . 4 1 1 . 1 2 1 1 1 1 . Specialist 5 | . . . . . . . . 2 . . . . . . . . . . . . 3 . . . . Hunter 19 | . . . . 4 . . . 2 . 2 1 . . . . . . . . . 4 5 . 1 . Programmer 44 | . . . . 6 . . . 1 1 6 . . . . 3 . . . 1 5 6 6 2 7 . Behemoth 2 | . . . . . . . . . . . . . . . . 1 . . 1 . . . . . . M Guard 2 | . . . . . . . . . . . . . . . . . . . . . . . . 2 . Enhanced Grunt 11 | . . . . . . . . . . . . 1 . . 2 . . . . . . . . . 8 Enhanced Hunter 2 | . . . . . . . . . . . . . . . . . . . . . . . . . 2 Combat Programmer 2 | . . . . . . . . . . . . . . . . . . . . . . . . 2 . Striker 2 | . . . . . . . . . . . . . . . . . . . . . 2 . . . . Alpha 7 1 | . . . . . . . . . . . . . . . . . . . . . 1 . . . . Best Kill Streak 9 | 1 3 5 8 3 3 1 . 4 9 6 7 1 . . 3 1 3 . 4 5 5 2 3 6 3 Combat Bots Only 8 | . 3 5 8 3 3 1 . 4 6 6 4 1 . . 3 1 3 . 4 5 3 2 3 6 3 Max Kills in Single Turn 5 | 1 1 2 2 2 1 1 . 1 4 1 3 1 . . 2 1 2 . 1 5 3 1 1 2 1 Gunslinging . | . . . . . . . . . . . . . . . . . . . . . . . . . . Exploded 5 | . . . . 1 . . . 1 2 . . . . . . . 2 . . 5 1 . . 2 . Melee 1 | . . 1 . . . . . . 1 1 . . . . . . . . . . . . . . . Uniques/NPCs Destroyed 3 | . . . . . . . . . . . . . . . . . . . . . . . . 1 2 MAIN.C Shell (-1/Command) A8 (-1/Access_0) A6 (-1/Access_0) Combat | -11 -10 -9 -8 -7 -7 -7 -7 -6 -6 -5 -5 -5 -5 -5 -4 -4 -4 -4 -3 -3 -3 -2 -1 -1 -1 -------- Run | Scr Mat Mat Mat Fac Low Low Zio Pro Fac Fac Ext Cet Arc Hub Fac Upp Upp Zhi Pro Res Tes Res Acc Com Ac0 Damage Taken 25602 | . 143 396 239 808 54 73 . 655 499 1744 977 21 119 55 650 610 133 . 2261 714 1664 798 74 5933 6982 Core 1979 | . 6 56 13 96 16 13 . 139 45 79 70 . 64 . 20 39 . . 131 43 33 9 . 334 773 Absorbed by Shields 1003 | . . . . . . . . . . . . 20 . . . . . . . . . 291 77 615 . Reduced by Siege Mode 46 | . . . . . . . . . . . . . . . . . . . . . . . . 46 . Core Remaining (%) 89 | 100 97 86 97 . . . . 62 94 . . . . 78 . . . . 83 . 94 99 . . . Volleys Fired 794 | 2 37 28 36 44 5 2 . 22 7 45 58 4 4 1 27 2 7 . 40 18 88 38 23 162 94 Largest 4 | 2 2 3 3 3 3 3 . 3 3 3 3 2 3 3 3 3 2 . 3 3 3 4 4 4 4 Hottest 399 | 40 70 105 123 229 218 147 . 158 172 166 183 240 205 205 205 148 163 . 243 234 337 399 390 333 346 Shots Fired 1725 | 4 73 81 98 119 15 6 . 55 16 130 122 7 10 4 74 6 13 . 109 50 179 120 54 216 164 Gun 594 | 4 29 . 63 92 . 4 . 33 1 110 78 5 7 3 47 6 . . 12 24 7 15 . 4 50 Cannon 1070 | . 44 81 35 27 15 2 . 22 13 20 19 2 3 1 27 . 12 . 92 24 170 105 50 192 114 Launcher 15 | . . . . . . . . . 2 . . . . . . . 1 . . 2 2 . . 8 . Special 46 | . . . . . . . . . . . 25 . . . . . . . 5 . . . 4 12 . Kinetic 751 | 4 73 81 84 31 . 2 . 31 9 74 48 2 4 2 38 4 . . 28 33 27 13 22 45 96 Thermal 452 | . . . 14 46 5 . . 13 . . 12 1 6 2 27 2 . . 12 7 98 65 23 99 20 Explosive 15 | . . . . . . . . . 2 . . . . . . . 1 . . 2 2 . . 8 . Electromagnetic 461 | . . . . 42 10 4 . 11 5 56 37 4 . . 9 . 12 . 64 8 52 42 5 52 48 Robot Hit Streak 71 | 3 32 20 26 28 14 17 . 17 3 43 19 9 7 10 23 4 12 . 40 24 30 14 15 45 71 Robot Miss Streak 5 | . 2 3 5 5 . 2 . 2 2 2 2 1 2 1 1 1 . . 2 1 2 4 2 1 2 Penetration Max 1 | . . . . . . . . . . 1 1 . . . 1 . . . . . . . . . 1 Secondary Targets 5 | . . . . . . . . . . 4 1 . . . . . . . . . . . . . . Max Gunslinging Chain 1 | . . . . . . . . . . 1 1 . . . . . . . . . . . . . . Capacitor 145 | . . . . . . . . . . . . . . . . . . . . . . . . 99 46 Shots Hit Robots 1432 | 3 57 70 56 102 13 4 . 50 22 109 102 5 8 3 60 7 8 . 98 40 120 66 30 258 141 Core Hits 677 | 2 18 24 29 74 5 3 . 28 16 52 46 4 3 1 31 3 8 . 51 24 53 23 14 115 50 Critical Hits 130 | . . . . 2 . . . 1 1 5 4 2 1 . 8 1 . . . 7 9 9 5 46 29 Critical Kills 30 | . . . . 1 . . . . . 1 1 2 . . 5 1 . . . 2 1 3 1 6 6 Critical Parts Destroyed 62 | . . . . . . . . . 1 4 3 . . . 2 . . . . 4 8 6 3 23 8 Melee Attacks 150 | . . 15 . 17 . . . 1 19 11 . . . . . 5 . . 1 . . . . 81 . Impact 15 | . . 15 . . . . . . . . . . . . . . . . . . . . . . . Slashing 17 | . . . . 17 . . . . . . . . . . . . . . . . . . . . . Piercing 118 | . . . . . . . . 1 19 11 . . . . . 5 . . 1 . . . . 81 . Sneak Attacks 2 | . . . . 1 . . . . 1 . . . . . . . . . . . . . . . . Combat Hostiles . | . . . . . . . . . . . . . . . . . . . . . . . . . . Follow-up Attacks . | . . . . . . . . . . . . . . . . . . . . . . . . . . Damage Inflicted 56563 | 25 777 1244 976 2669 327 77 . 1048 1244 3055 2432 162 162 134 2252 168 612 . 2520 1813 7592 3221 1700 16459 5894 Guns 11503 | 25 232 . 609 1652 . 54 . 472 22 2316 1864 102 122 95 1252 103 . . 351 666 162 280 . 35 1089 Cannons 30370 | . 541 996 367 575 327 23 . 474 265 464 568 60 40 39 820 . 483 . 1988 512 6121 2941 1700 6307 4759 Explosions 5441 | . . . . 306 . . . 102 542 138 . . . . 180 . 129 . 181 635 1309 . . 1873 46 Melee 9245 | . . 248 . 136 . . . . 415 137 . . . . . 65 . . . . . . . 8244 . Ramming 4 | . 4 . . . . . . . . . . . . . . . . . . . . . . . . Kinetic 16225 | 25 773 996 782 358 . 12 . 524 192 1461 1176 60 80 55 910 74 . . 822 763 800 375 441 1468 4078 Thermal 18559 | . . . 194 1273 78 . . 394 . 138 369 . 82 79 1046 29 . . 532 324 4596 2359 1209 4617 1240 Explosive 2624 | . . . . . . . . . 542 . . . . . . . 129 . . 552 475 . . 926 . Electromagnetic 9906 | . . . . 902 249 65 . 130 95 1319 887 102 . . 296 . 483 . 1166 174 1721 487 50 1204 576 Impact 248 | . . 248 . . . . . . . . . . . . . . . . . . . . . . . Slashing 136 | . . . . 136 . . . . . . . . . . . . . . . . . . . . . Piercing 8861 | . . . . . . . . . 415 137 . . . . . 65 . . . . . . . 8244 . Highest Corruption 16 | . . . . 2 2 2 2 1 . 7 8 8 8 8 2 2 2 2 3 2 8 4 . 16 16 Average Corruption 6 | . . . . 1 2 2 2 1 . 2 7 8 8 8 1 2 2 2 2 1 5 3 . 14 16 Corruption Purged . | . . . . . . . . . . . . . . . . . . . . . . . . . . Effects 464 | . . . . 14 15 5 1 1 . 14 66 17 7 9 1 4 7 2 16 1 55 16 . 159 54 Message Errors 91 | . . . . 8 4 . 1 . . 5 12 5 2 1 . 2 2 . 2 1 11 5 . 24 6 Matter Fused 56 | . . . . . . . . . . 1 10 2 1 2 . . . . 2 . 12 4 . 19 3 Heat Flow Errors 44 | . . . . 3 6 2 . . . 1 7 2 2 . 1 . 1 . 3 . 3 2 . 9 2 Energy Discharges 57 | . . . . . 2 2 . . . 2 16 3 . 2 . 2 1 2 1 . 8 . . 15 1 Parts Rejected 5 | . . . . . . . . . . 1 . 1 . . . . . . . . 1 . . 1 1 Data Loss (minor) 38 | . . . . 3 3 1 . . . 2 7 1 . 1 . . 3 . 2 . 1 2 . 11 1 Data Loss (major) 10 | . . . . . . . . . . . . . . 1 . . . . . . . . . 8 1 Misfires 16 | . . . . . . . . . . 1 3 1 . 1 . . . . . . 2 . . 6 2 Alerts 2 | . . . . . . . . . . . . . . . . . . . . . . . . 1 1 Misdirections 32 | . . . . . . . . . . . . . . . . . . . . . . . . 30 2 Targeting Errors 103 | . . . . . . . . 1 . 1 10 2 1 1 . . . . 6 . 16 3 . 30 32 Weapon Failures 10 | . . . . . . . . . . . 1 . 1 . . . . . . . 1 . . 5 2 Overload Shots 1 | . . . . . . . . . . . . 1 . . . . . . . . . . . . . Overflow Damage 2079 | . 13 26 4 22 . . . . 43 10 47 . . . 53 . 19 . 28 . 883 209 62 582 78 Projectiles 1203 | . 13 5 4 11 . . . . 43 . 47 . . . 8 . . . 10 . 572 209 62 141 78 Explosions 433 | . . . . 11 . . . . . 10 . . . . 45 . 19 . 18 . 311 . . 19 . Melee 443 | . . 21 . . . . . . . . . . . . . . . . . . . . . 422 . Knockbacks 54 | . 5 9 2 1 . . . 3 . . . . . . 1 . . . 4 2 3 3 3 2 16 Impact 1 | . . 1 . . . . . . . . . . . . . . . . . . . . . . . Kinetic 49 | . 5 5 2 1 . . . 3 . . . . . . 1 . . . 4 2 3 3 3 2 15 Secondary 4 | . . 3 . . . . . . . . . . . . . . . . . . . . . . 1 Self-Inflicted Damage 440 | . 2 . . 201 . . . . . 41 . . . . 44 . . . . 97 55 . . . . Shots 10 | . . . . 5 . . . . . 1 . . . . 1 . . . . 2 1 . . . . Rammed 1 | . 1 . . . . . . . . . . . . . . . . . . . . . . . . Targets Rammed 1 | . 1 . . . . . . . . . . . . . . . . . . . . . . . . Kicked . | . . . . . . . . . . . . . . . . . . . . . . . . . . Crushed . | . . . . . . . . . . . . . . . . . . . . . . . . . . Highest Temperature 473 | . 54 241 473 248 268 228 . 380 . 193 209 174 167 42 105 . 95 . 416 188 101 283 160 171 198 Average Temperature 71 | . 14 70 127 56 97 92 . 112 . 35 49 79 66 31 42 . 24 . 86 79 54 34 61 55 92 Received Heat Transfer 2610 | . 54 123 18 105 18 36 . 27 144 411 360 4 27 15 99 63 45 . 399 27 75 4 8 362 186 Effects 6 | . . . 3 . . . . 2 . . . . . . . . . . 1 . . . . . . Shutdowns 1 | . . . . . . . . 1 . . . . . . . . . . . . . . . . . Matter Decay 1 | . . . . . . . . . . . . . . . . . . . 1 . . . . . . Short Circuit 3 | . . . 2 . . . . 1 . . . . . . . . . . . . . . . . . Damage (minor) 1 | . . . 1 . . . . . . . . . . . . . . . . . . . . . . Siege Activations 2 | . . . . . . . . . . . . . . . . . . . . . . . . 2 . Total Turns 29 | . . . . . . . . . . . . . . . . . . . . . . . . 29 . Longest Duration 19 | . . . . . . . . . . . . . . . . . . . . . . . . 19 . Robots Corrupted 21 | . . . . 1 1 . . . . 3 . . . . . . 2 . 1 . 4 1 . 6 2 Combat Hostiles 21 | . . . . 1 1 . . . . 3 . . . . . . 2 . 1 . 4 1 . 6 2 Parts Fried 70 | . . . . 1 5 . . . . 11 1 . . . 2 . 6 . 6 1 9 2 . 6 20 Impact Corruptions 2 | . . 2 . . . . . . . . . . . . . . . . . . . . . . . Robots Melted . | . . . . . . . . . . . . . . . . . . . . . . . . . . Combat Hostiles . | . . . . . . . . . . . . . . . . . . . . . . . . . . Parts Melted 19 | . . . 3 2 . . . 4 . . 3 . 1 . 1 . . . . . . . . 5 . Heat Transferred 13823 | . . . 444 2325 150 . . 650 . 150 225 . 99 62 917 37 . . 569 309 2906 1305 647 2651 377 Parts Sabotaged . | . . . . . . . . . . . . . . . . . . . . . . . . . . Parts Stolen . | . . . . . . . . . . . . . . . . . . . . . . . . . . Parts Stripped . | . . . . . . . . . . . . . . . . . . . . . . . . . . Power Chain Reactions 9 | . . . . 3 . . . 1 . 1 . . . . . . . . 2 1 . . . . 1 Missiles Intercepted . | . . . . . . . . . . . . . . . . . . . . . . . . . . Alert | -11 -10 -9 -8 -7 -7 -7 -7 -6 -6 -5 -5 -5 -5 -5 -4 -4 -4 -4 -3 -3 -3 -2 -1 -1 -1 ------- Run | Scr Mat Mat Mat Fac Low Low Zio Pro Fac Fac Ext Cet Arc Hub Fac Upp Upp Zhi Pro Res Tes Res Acc Com Ac0 Peak Influence 589 | 5 274 344 476 225 . . . . 225 338 218 459 240 140 378 . . . . 309 589 402 307 319 . Initial 288 | . 2 28 57 52 . . . . . 10 81 . 154 70 59 . . . . 79 151 288 113 65 . Average 148 | 1 90 180 258 85 . . . . 61 73 88 264 223 66 240 . . . . 102 345 277 161 150 . Maximum Alert Level 2 | . 1 1 2 1 . . . . 1 1 1 2 1 . 1 . . . . 1 2 2 1 1 . Low Security (%) 75 | 100 97 70 33 96 . . . . 77 86 90 46 23 100 20 . . . . 85 20 20 73 94 . Level 1 20 | . 2 29 51 3 . . . . 22 13 9 18 76 . 79 . . . . 14 37 78 26 5 . Level 2 4 | . . . 15 . . . . . . . . 35 . . . . . . . . 42 . . . . Level 3 . | . . . . . . . . . . . . . . . . . . . . . . . . . . Level 4 . | . . . . . . . . . . . . . . . . . . . . . . . . . . Level 5 . | . . . . . . . . . . . . . . . . . . . . . . . . . . High Security . | . . . . . . . . . . . . . . . . . . . . . . . . . . Max Security . | . . . . . . . . . . . . . . . . . . . . . . . . . . Squads Dispatched 51 | . 2 1 3 7 . . . . 2 7 . 1 . . 2 . . . 1 4 7 4 2 8 . Investigation 8 | . 2 . . 1 . . . . . 1 . 1 . . . . . . . 1 1 . . 1 . Extermination 24 | . . . . 5 . . . . 2 2 . . . . 1 . . . . 2 3 3 2 4 . Reinforcement 9 | . . 1 . 1 . . . . . 1 . . . . . . . . . . 3 1 . 2 . Assault 2 | . . . . . . . . . . . . . . . . . . . 1 . . . . 1 . Garrison 8 | . . . 3 . . . . . . 3 . . . . 1 . . . . 1 . . . . . Intercept . | . . . . . . . . . . . . . . . . . . . . . . . . . . Construction Impeded 1 | . . . . . . . . . . 1 . . . . . . . . . . . . . . . Haulers Reinforced . | . . . . . . . . . . . . . . . . . . . . . . . . . . Stealth | -11 -10 -9 -8 -7 -7 -7 -7 -6 -6 -5 -5 -5 -5 -5 -4 -4 -4 -4 -3 -3 -3 -2 -1 -1 -1 --------- Run | Scr Mat Mat Mat Fac Low Low Zio Pro Fac Fac Ext Cet Arc Hub Fac Upp Upp Zhi Pro Res Tes Res Acc Com Ac0 Distress Signals 15 | . 1 2 3 2 . . . . . . 2 1 . 1 1 . . . . . 2 . . . . Communications Jammed . | . . . . . . . . . . . . . . . . . . . . . . . . . . Distress Signals . | . . . . . . . . . . . . . . . . . . . . . . . . . . Times Spotted 380 | . 15 25 19 29 3 1 . 6 12 30 29 10 4 5 18 2 3 . 23 14 39 20 12 38 23 Peak Tracking Total 10 | . 3 7 8 3 3 1 . 3 4 5 8 5 3 2 5 1 2 . 10 5 6 3 5 6 4 Tactical Retreats 12 | . 1 1 1 1 . . . . . 1 2 1 . . 1 . . . 1 . 1 . . 1 . Traps | -11 -10 -9 -8 -7 -7 -7 -7 -6 -6 -5 -5 -5 -5 -5 -4 -4 -4 -4 -3 -3 -3 -2 -1 -1 -1 ------- Run | Scr Mat Mat Mat Fac Low Low Zio Pro Fac Fac Ext Cet Arc Hub Fac Upp Upp Zhi Pro Res Tes Res Acc Com Ac0 Traps Triggered 37 | . 2 . . 3 . . . . 4 . 4 . . . . . . . . 3 . 2 . 19 . Indirectly . | . . . . . . . . . . . . . . . . . . . . . . . . . . Trap Hack Attempts . | . . . . . . . . . . . . . . . . . . . . . . . . . . Triggered . | . . . . . . . . . . . . . . . . . . . . . . . . . . Disarmed . | . . . . . . . . . . . . . . . . . . . . . . . . . . Reprogrammed . | . . . . . . . . . . . . . . . . . . . . . . . . . . Reused . | . . . . . . . . . . . . . . . . . . . . . . . . . . Traps Extracted . | . . . . . . . . . . . . . . . . . . . . . . . . . . Installed . | . . . . . . . . . . . . . . . . . . . . . . . . . . Triggered 4 | . . . . . . 1 . 1 . . . . . . . . 1 . . . . . . 1 . Machines | -11 -10 -9 -8 -7 -7 -7 -7 -6 -6 -5 -5 -5 -5 -5 -4 -4 -4 -4 -3 -3 -3 -2 -1 -1 -1 ---------- Run | Scr Mat Mat Mat Fac Low Low Zio Pro Fac Fac Ext Cet Arc Hub Fac Upp Upp Zhi Pro Res Tes Res Acc Com Ac0 Machines Disabled 49 | . . 1 1 8 . . . 1 1 2 4 4 1 . 2 . . . 1 . 12 1 3 6 1 Max in Single Turn 4 | . . 1 1 4 . . . 1 1 1 1 1 1 . 2 . . . 1 . 2 1 1 2 1 Garrison Access 4 | . . . . 1 . . . . . 1 . . . . . . . . . . 1 1 . . . Phase Generator 1 | . . . . . . . . . . . . . . . . . . . . . . . . 1 . Machines Sabotaged . | . . . . . . . . . . . . . . . . . . . . . . . . . . Garrisons Compromised . | . . . . . . . . . . . . . . . . . . . . . . . . . . Overloaded Fab Kills . | . . . . . . . . . . . . . . . . . . . . . . . . . . Fab Network Shutdowns . | . . . . . . . . . . . . . . . . . . . . . . . . . . Hacking | -11 -10 -9 -8 -7 -7 -7 -7 -6 -6 -5 -5 -5 -5 -5 -4 -4 -4 -4 -3 -3 -3 -2 -1 -1 -1 --------- Run | Scr Mat Mat Mat Fac Low Low Zio Pro Fac Fac Ext Cet Arc Hub Fac Upp Upp Zhi Pro Res Tes Res Acc Com Ac0 Machines Accessed 115 | . 9 7 5 20 . 1 1 . 3 10 8 1 1 2 1 1 . 9 . 6 11 5 8 6 . Terminals 67 | . 7 5 4 11 . 1 . . 1 6 7 1 . 2 . . . . . 3 6 3 6 4 . Fabricators 4 | . . . . 1 . . . . . 1 . . . . . . . . . 1 1 . . . . Repair Stations 12 | . 1 1 1 4 . . . . . . . . . . 1 . . . . . 1 . 1 2 . Recycling Units 4 | . 1 . . 1 . . . . 1 . 1 . . . . . . . . . . . . . . Scanalyzers 8 | . . 1 . 1 . . . . 1 1 . . . . . . . . . 1 2 1 . . . Garrison Access 8 | . . . . 2 . . . . . 2 . . . . . . . . . 1 1 1 1 . . Total Hacks 319 | . 35 31 27 53 . 1 6 . 9 22 17 2 1 3 2 1 . 48 . 9 20 10 11 11 . Successful 201 | . 20 24 18 34 . 1 6 . 7 6 7 . 1 2 2 1 . 48 . 2 7 5 3 7 . Failed 117 | . 14 7 9 19 . . . . 2 16 10 2 . 1 . . . . . 7 13 5 8 4 . Catastrophic 16 | . 1 1 . 1 . . . . . 3 . 1 . . . . . . . 3 3 . 2 1 . Database Lockouts 1 | . 1 . . . . . . . . . . . . . . . . . . . . . . . . Manual 74 | . 12 10 16 15 . 1 . 1 2 4 3 1 . 1 . . . . . . 4 . 2 2 . Terminals 183 | . 29 16 25 35 . 1 . . 5 13 15 2 . 3 . . . . . 4 12 7 8 8 . Fabricators 10 | . . . . 2 . . . . . 4 . . . . . . . . . 3 1 . . . . Repair Stations 30 | . 4 7 2 8 . . . . . . . . . . 2 . . . . . 2 . 2 3 . Recycling Units 7 | . 2 . . 1 . . . . 2 . 2 . . . . . . . . . . . . . . Scanalyzers 21 | . . 8 . 4 . . . . 2 1 . . . . . . . . . 1 3 2 . . . Garrison Access 12 | . . . . 3 . . . . . 4 . . . . . . . . . 1 2 1 1 . . Terminal Hacks 132 | . 12 6 11 17 . 1 6 . 3 3 7 . 1 2 . 1 . 48 . 1 3 2 3 5 . Record 39 | . . . . . . 1 . . . . . . 1 . . . . 36 . . . 1 . . . Part Schematic 10 | . . . . . . . 6 . . . . . . . . . . 4 . . . . . . . Robot Schematic 1 | . . . 1 . . . . . . . . . . . . . . . . . . . . . . Robot Analysis 9 | . 3 . . 2 . . . . . . . . . . . . . 4 . . . . . . . Prototype ID Bank 10 | . 1 . 2 2 . . . . 1 . . . . . . . . 4 . . . . . . . Open Door 8 | . . . . . . . . . . . 4 . . . . 1 . . . . 1 . 1 1 . Level Access Points 1 | . . . . . . . . . . . . . . 1 . . . . . . . . . . . Branch Access Points 3 | . 1 . . 1 . . . . 1 . . . . . . . . . . . . . . . . Emergency Access Points 2 | . . . . 1 . . . . . . . . . . . . . . . . . . . 1 . Machine Index 1 | . . . . 1 . . . . . . . . . . . . . . . . . . . . . Terminal Index 1 | . . . 1 . . . . . . . . . . . . . . . . . . . . . . Fabricator Index 1 | . . . 1 . . . . . . . . . . . . . . . . . . . . . . Alert Level 3 | . 1 . . 1 . . . . . . . . . . . . . . . . . . 1 . . Unreport Threat 3 | . . . 1 . . . . . . . 1 . . 1 . . . . . . . . . . . Locate Traps 23 | . 3 3 2 5 . . . . 1 2 2 . . . . . . . . . 1 1 1 2 . Disarm Traps 1 | . . . . 1 . . . . . . . . . . . . . . . . . . . . . Security Status 1 | . . . 1 . . . . . . . . . . . . . . . . . . . . . . Hauler Manifests 2 | . 1 . . 1 . . . . . . . . . . . . . . . . . . . . . Registered Components 1 | . . . . 1 . . . . . . . . . . . . . . . . . . . . . Registered Prototypes 2 | . . 1 1 . . . . . . . . . . . . . . . . . . . . . . Zone Layout 9 | . 2 2 1 1 . . . . . 1 . . . . . . . . . 1 . . . 1 . Protovariant Controls 1 | . . . . . . . . . . . . . . . . . . . . . 1 . . . . Fabricator Hacks 5 | . . . . 2 . . . . . 2 . . . . . . . . . 1 . . . . . Load Schematic 3 | . . . . 1 . . . . . 1 . . . . . . . . . 1 . . . . . Build 2 | . . . . 1 . . . . . 1 . . . . . . . . . . . . . . . Repair Station Hacks 19 | . 3 6 2 3 . . . . . . . . . . 2 . . . . . 1 . . 2 . Scan Component 10 | . 1 3 1 2 . . . . . . . . . . 1 . . . . . 1 . . 1 . Repair 8 | . 1 3 1 1 . . . . . . . . . . 1 . . . . . . . . 1 . Refit 1 | . 1 . . . . . . . . . . . . . . . . . . . . . . . . Recycling Unit Hacks 3 | . . . . 1 . . . . 2 . . . . . . . . . . . . . . . . Retrieve Matter 2 | . . . . 1 . . . . 1 . . . . . . . . . . . . . . . . Retrieve Components 1 | . . . . . . . . . 1 . . . . . . . . . . . . . . . . Scanalyzer 16 | . . 8 . 4 . . . . 2 . . . . . . . . . . . . 2 . . . Insert Component 8 | . . 4 . 2 . . . . 1 . . . . . . . . . . . . 1 . . . Analyze 8 | . . 4 . 2 . . . . 1 . . . . . . . . . . . . 1 . . . Garrison Access Hacks 4 | . . . . 1 . . . . . 1 . . . . . . . . . . 1 1 . . . Seal Access 4 | . . . . 1 . . . . . 1 . . . . . . . . . . 1 1 . . . Unauthorized Hacks 22 | . 5 4 5 6 . . . . . . . . . . . . . . . . 2 . . . . Terminals 20 | . 4 4 5 6 . . . . . . . . . . . . . . . . 1 . . . . Track 14 | . 3 3 2 6 . . . . . . . . . . . . . . . . . . . . . Assimilate 2 | . . 1 . . . . . . . . . . . . . . . . . . 1 . . . . Botnet 3 | . 1 . 2 . . . . . . . . . . . . . . . . . . . . . . Operators 1 | . . . 1 . . . . . . . . . . . . . . . . . . . . . . Fabricators . | . . . . . . . . . . . . . . . . . . . . . . . . . . Repair Stations . | . . . . . . . . . . . . . . . . . . . . . . . . . . Recycling Units 1 | . 1 . . . . . . . . . . . . . . . . . . . . . . . . Tunnel 1 | . 1 . . . . . . . . . . . . . . . . . . . . . . . . Scanalyzers 1 | . . . . . . . . . . . . . . . . . . . . . 1 . . . . Researchers 1 | . . . . . . . . . . . . . . . . . . . . . 1 . . . . Garrison Access . | . . . . . . . . . . . . . . . . . . . . . . . . . . Data Cores Recovered 4 | . . . 1 1 . . . . . . . . . . . . . . . . 1 . 1 . . Used 1 | . . . . . . . . . . . . . . . . . . . . . . . 1 . . Hacking Detections 91 | . 7 7 5 18 . . . . 3 9 5 1 . 1 1 . . . . 6 11 4 7 6 . Full Trace Events 3 | . . . . . . . . . . 1 . 1 . . . . . . . . 1 . . . . Feedback Events 1 | . . . . . . . . . . 1 . . . . . . . . . . . . . . . Corruption 1 | . . . . . . . . . . 1 . . . . . . . . . . . . . . . Feedback Blocked . | . . . . . . . . . . . . . . . . . . . . . . . . . . Robot Schematics Acquired 1 | . . . 1 . . . . . . . . . . . . . . . . . . . . . . Robots Built . | . . . . . . . . . . . . . . . . . . . . . . . . . . Matter . | . . . . . . . . . . . . . . . . . . . . . . . . . . Time . | . . . . . . . . . . . . . . . . . . . . . . . . . . Total Robot Build Rating . | . . . . . . . . . . . . . . . . . . . . . . . . . . Part Schematics Acquired 18 | . . 4 . 2 . . 6 . 1 . . . . . . . . 4 . . . 1 . . . Parts Built 3 | . . . . 1 . . . . . 2 . . . . . . . . . . . . . . . Matter 270 | . . . . 102 . . . . . 168 . . . . . . . . . . . . . . . Time 67 | . . . . 25 . . . . . 42 . . . . . . . . . . . . . . . Total Part Build Rating 9 | . . . . 1 . . . . . 8 . . . . . . . . . . . . . . . Parts Repaired 8 | . 1 3 1 1 . . . . . . . . . . 1 . . . . . . . . 1 . Time 256 | . 26 84 32 38 . . . . . . . . . . 56 . . . . . . . . 20 . Parts Recycled . | . . . . . . . . . . . . . . . . . . . . . . . . . . Recycled Matter . | . . . . . . . . . . . . . . . . . . . . . . . . . . Retrieved Matter . | . . . . . . . . . . . . . . . . . . . . . . . . . . Retrieved Components 1 | . . . . . . . . . 1 . . . . . . . . . . . . . . . . Parts Scanalyzed 8 | . . 4 . 2 . . . . 1 . . . . . . . . . . . . 1 . . . Part Schematics Acquired 8 | . . 4 . 2 . . . . 1 . . . . . . . . . . . . 1 . . . Parts Damaged . | . . . . . . . . . . . . . . . . . . . . . . . . . . Bothacking | -11 -10 -9 -8 -7 -7 -7 -7 -6 -6 -5 -5 -5 -5 -5 -4 -4 -4 -4 -3 -3 -3 -2 -1 -1 -1 ------------ Run | Scr Mat Mat Mat Fac Low Low Zio Pro Fac Fac Ext Cet Arc Hub Fac Upp Upp Zhi Pro Res Tes Res Acc Com Ac0 Used RIF Installer . | . . . . . . . . . . . . . . . . . . . . . . . . . . Robots Hacked 3 | . . . . . . . . . . . 3 . . . . . . . . . . . . . . Non-combat 1 | . . . . . . . . . . . 1 . . . . . . . . . . . . . . Combat . | . . . . . . . . . . . . . . . . . . . . . . . . . . Robot Hacks Applied 1 | . . . . . . . . . . . 1 . . . . . . . . . . . . . . no_distress 1 | . . . . . . . . . . . 1 . . . . . . . . . . . . . . Manual 2 | . . . . . . . . . . . 2 . . . . . . . . . . . . . . Relay Couplers Released 4 | . . . . 4 . . . . . . . . . . . . . . . . . . . . . Programmers 4 | . . . . 4 . . . . . . . . . . . . . . . . . . . . . Robots Rewired 22 | . . . . . . . . . . . 13 . . . . . . . 2 . . . 1 6 . Allies Hacked 2 | . . . . . . . . . . . . . . . . . . . . . . . 1 1 . Hacks Repelled . | . . . . . . . . . . . . . . . . . . . . . . . . . . Allies | -11 -10 -9 -8 -7 -7 -7 -7 -6 -6 -5 -5 -5 -5 -5 -4 -4 -4 -4 -3 -3 -3 -2 -1 -1 -1 -------- Run | Scr Mat Mat Mat Fac Low Low Zio Pro Fac Fac Ext Cet Arc Hub Fac Upp Upp Zhi Pro Res Tes Res Acc Com Ac0 Total Allies 41 | . . 1 . . . . . . . . 20 4 . . . . . . 2 . 1 . 4 9 . Largest Group 15 | . . 1 . . . . . . . . 12 15 11 6 6 . . . 2 2 1 . 4 3 . Highest-Rated Group 884 | . . 10 . . . . . . . . 550 884 657 364 364 . . . 96 96 44 . 590 164 . Highest-Rated Ally 222 | . . 10 . . . . . . . . 156 156 156 94 94 . . . 48 48 44 . 222 69 . Total Orders 7 | . . . . . . . . . 1 . . . . . 1 . . . . . . . 5 . . ROAM 3 | . . . . . . . . . . . . . . . . . . . . . . . 3 . . FOLLOW 1 | . . . . . . . . . . . . . . . . . . . . . . . 1 . . AID 1 | . . . . . . . . . . . . . . . . . . . . . . . 1 . . EXPLORE 2 | . . . . . . . . . 1 . . . . . 1 . . . . . . . . . . Ally Attacks 290 | . . . . . . . . . . . 76 69 31 9 11 . . . 1 6 . . 67 20 . Total Damage 8153 | . . . . . . . . . . . 1500 1710 1141 322 378 . . . . 245 . . 2093 764 . Kills 42 | . . . . . . . . . . . 9 15 5 3 1 . . . . 1 . . 5 3 . Allies Corrupted . | . . . . . . . . . . . . . . . . . . . . . . . . . . Allies Melted . | . . . . . . . . . . . . . . . . . . . . . . . . . . Intel | -11 -10 -9 -8 -7 -7 -7 -7 -6 -6 -5 -5 -5 -5 -5 -4 -4 -4 -4 -3 -3 -3 -2 -1 -1 -1 ------- Run | Scr Mat Mat Mat Fac Low Low Zio Pro Fac Fac Ext Cet Arc Hub Fac Upp Upp Zhi Pro Res Tes Res Acc Com Ac0 Robot Analysis Total 9 | . 3 . . 2 . . . . . . . . . . . . . 4 . . . . . . . Derelict Logs Recovered 6 | . . . . . 1 1 2 . . . . . . . . 1 1 . . . . . . . . Drone Launches 2 | . . . . . . . . . 1 . . . . . 1 . . . . . . . . . . Drone Recoveries . | . . . . . . . . . . . . . . . . . . . . . . . . . . Exploration | -11 -10 -9 -8 -7 -7 -7 -7 -6 -6 -5 -5 -5 -5 -5 -4 -4 -4 -4 -3 -3 -3 -2 -1 -1 -1 ------------- Run | Scr Mat Mat Mat Fac Low Low Zio Pro Fac Fac Ext Cet Arc Hub Fac Upp Upp Zhi Pro Res Tes Res Acc Com Ac0 Turns Passed 28699 | 82 899 886 507 3191 1328 347 1807 827 1337 2049 1807 367 139 214 644 586 822 208 542 1096 1592 1413 845 4730 434 Spaces Moved 17493 | 65 652 550 259 2217 928 244 1285 518 644 1209 1001 227 78 133 320 372 425 143 269 608 937 869 552 2837 151 Core 12 | 12 . . . . . . . . . . . . . . . . . . . . . . . . . Treads 371 | . . . 32 3 . . . . 252 45 30 . . . . . . . . 8 . . . 1 . Legs . | . . . . . . . . . . . . . . . . . . . . . . . . . . Wheels 17110 | 53 652 550 227 2214 928 244 1285 518 392 1164 971 227 78 133 320 372 425 143 269 600 937 869 552 2836 151 Hover . | . . . . . . . . . . . . . . . . . . . . . . . . . . Flight . | . . . . . . . . . . . . . . . . . . . . . . . . . . Fastest Speed 50 | 50 100 110 120 120 140 140 140 130 140 140 140 140 150 150 150 140 140 140 140 130 130 140 140 130 130 Average Speed 137 | 90 108 110 134 124 140 140 140 139 167 142 148 148 150 150 150 146 140 140 142 155 130 140 140 139 140 Slowest Speed 250 | 100 130 110 240 240 140 140 140 140 240 240 250 150 150 150 150 180 140 140 150 220 140 140 140 230 160 Overloaded Moves . | . . . . . . . . . . . . . . . . . . . . . . . . . . Propulsion Burnouts . | . . . . . . . . . . . . . . . . . . . . . . . . . . Robots Hopped . | . . . . . . . . . . . . . . . . . . . . . . . . . . Cave-ins Triggered . | . . . . . . . . . . . . . . . . . . . . . . . . . . Teleports 1 | . . . . . . . . . . . . . . . . . . . . . . . . 1 . Exploration Rate (%) 49 | 4 80 42 26 50 79 49 86 68 23 19 98 78 85 18 11 64 50 63 44 18 85 26 18 85 10 Regions Visited 25 Branch Regions 15 Pre-discovered Areas 8 | . 1 . . . . 1 3 . . . . . . . . . . 3 . . . . . . . Known Exits Taken 5 | . . . . 1 . . . . . 1 . . . 1 . . . . . . . 1 1 . . Unknown Exits Taken 20 | 1 1 1 1 . 1 1 1 1 1 . 1 1 1 . 1 1 1 1 1 1 1 . . 1 . Scrap Searched 18 | . . . . . 6 1 3 2 . . . . . . . 2 1 . 3 . . . . . . Spaces Dug 72 | . . 3 . 15 . . . . 5 5 . . . . . 1 . . . . 21 7 5 10 . Terrain Destroyed 640 | . . 3 . 102 . . . 1 18 18 3 . 1 . 50 3 15 . 35 61 114 26 14 136 40 Melee 33 | . . 3 . 15 . . . . 5 5 . . . . . 1 . . . . . . . 4 . Projectile 161 | . . . . 2 . . . 1 1 5 3 . 1 . 11 2 . . 5 7 37 26 14 13 33 AOE 446 | . . . . 85 . . . . 12 8 . . . . 39 . 15 . 30 54 77 . . 119 7 Terrain Rammed . | . . . . . . . . . . . . . . . . . . . . . . . . . . Walls Destroyed . | . . . . . . . . . . . . . . . . . . . . . . . . . . Machines Disabled . | . . . . . . . . . . . . . . . . . . . . . . . . . . Actions | -11 -10 -9 -8 -7 -7 -7 -7 -6 -6 -5 -5 -5 -5 -5 -4 -4 -4 -4 -3 -3 -3 -2 -1 -1 -1 --------- Run | Scr Mat Mat Mat Fac Low Low Zio Pro Fac Fac Ext Cet Arc Hub Fac Upp Upp Zhi Pro Res Tes Res Acc Com Ac0 Total 20644 | 81 780 740 350 2528 943 245 1294 570 852 1412 1233 253 90 147 427 397 635 151 344 742 1165 988 601 3405 271 Wait 1156 | . 54 117 4 139 . . . 12 132 97 116 6 9 12 34 10 197 . 8 55 50 40 2 62 . Move 17468 | 64 651 549 258 2216 927 243 1284 517 643 1208 1000 226 77 132 319 371 424 142 268 607 936 868 551 2836 151 Hop . | . . . . . . . . . . . . . . . . . . . . . . . . . . Pick Up 198 | 8 13 10 20 25 1 . 2 3 9 13 9 3 . 1 11 1 . 1 1 14 14 7 6 22 4 Fast Attach 143 | 7 5 2 1 13 . . 3 1 5 4 5 5 . . 7 . . 4 4 9 23 8 1 33 3 Attach 75 | . . 4 5 3 . . . 3 3 3 2 . . . 3 2 . . 4 2 2 3 2 21 13 Detach 15 | . . . 2 1 . . . . . . . . . . . . . . 2 . . 1 . 9 . Swap 194 | . 6 6 9 29 8 . . 6 9 15 16 1 . . 8 6 7 . 11 10 11 8 11 17 . Drop 302 | . 13 9 15 37 2 . 5 5 15 16 12 8 . 1 18 . . 4 5 23 41 15 5 47 6 Fire 794 | 2 37 28 36 44 5 2 . 22 7 45 58 4 4 1 27 2 7 . 40 18 88 38 23 162 94 Melee 150 | . . 15 . 17 . . . 1 19 11 . . . . . 5 . . 1 . . . . 81 . Ram 1 | . 1 . . . . . . . . . . . . . . . . . . . . . . . . Kick . | . . . . . . . . . . . . . . . . . . . . . . . . . . Crush . | . . . . . . . . . . . . . . . . . . . . . . . . . . Escape Stasis 145 | . . . . 4 . . . . 10 . 14 . . . . . . . . 4 . . . 113 . Rewire 3 | . . . . . . . . . . . 1 . . . . . . . . . . . . 2 . Trap . | . . . . . . . . . . . . . . . . . . . . . . . . . . Miscellaneous . | . . . . . . . . . . . . . . . . . . . . . . . . . . Route ------- -11/Scrapyard -10/Materials (discovered 3 exits: *Mat x2 / *Min) -9/Materials (discovered 2 exits: *Mat x2) -8/Materials -7/Factory (discovered 5 exits: *Fac x2 / *Sto / *Low x2) -7/Lower Caves -7/Lower Caves -7/Zion -6/Proximity Caves -6/Factory (discovered 5 exits: *Fac x3 / *Low x2) -5/Factory (discovered 2 exits: [*Upp] / *Ext) -5/Extension (discovered 2 exits: *Fac / *Cet) -5/Cetus -5/Archives (discovered 3 exits: *Fac / *Hub x2) -5/Hub_04(d) (discovered 4 exits: *Fac x4) -4/Factory -4/Upper Caves -4/Upper Caves (discovered 2 exits: *Res / *Zhi) -4/Zhirov -3/Proximity Caves -3/Research (discovered 2 exits: *Res / *Tes) -3/Testing -2/Research (discovered 2 exits: *Acc / Qua) -1/Access (discovered 2 exits: Sur / *Com) -1/Command (discovered 3 exits: *Sur x2 / [*Ac0]) -1/Access_0 History --------- Turn | Location | Event 2 | -11/Scrapyard | Met Revision 17 4 | -11/Scrapyard | Discovered new exit (range 16) 83 | -11/Scrapyard | Entered Materials 317 | -10/Materials | Central database locked down 334 | -10/Materials | Build established: Mutant 369 | -10/Materials | Discovered new exit (range 15) 675 | -10/Materials | Identified exit to Mines 744 | -10/Materials | Repaired Ion Engine 953 | -10/Materials | Discovered new exit (range 16) 982 | -10/Materials | Entered another Materials area 982 | -9/Materials | Evolved 2 slots: Utility x1, Weapon x1 1406 | -9/Materials | Build established: Tank 1423 | -9/Materials | Discovered new exit (range 16) 1519 | -9/Materials | Repaired Lgt. Armor Plating 1552 | -9/Materials | Repaired Arm. Wheel? 1586 | -9/Materials | Repaired Lgt. Cannon 1804 | -9/Materials | Discovered new exit (range 11) 1868 | -9/Materials | Entered another Materials area 1868 | -8/Materials | Evolved 2 slots: Propulsion x1, Utility x1 1975 | -8/Materials | Garrison activated, responded to threat 1999 | -8/Materials | Destroyed 8 combat bots 2176 | -8/Materials | Repaired Arm. Wheel 2243 | -8/Materials | Build established: Hauler-Tank 2358 | -8/Materials | Discovered new exit (range 10) 2375 | -8/Materials | Entered Factory 2375 | -7/Factory | Evolved 2 slots: Propulsion x1, Utility x1 2584 | -7/Factory | Build established: Hauler-Gunner 2640 | -7/Factory | Discovered new exit (range 3) 3441 | -7/Factory | Discovered new exit (range 4) 3600 | -7/Factory | Discovered new exit (range 12) 3658 | -7/Factory | Build established: Hauler-Skirmisher 3706 | -7/Factory | Repaired Adv. Treads 4273 | -7/Factory | Fabricated Hcp. Storage Unit (x1) 4950 | -7/Factory | Identified exit to Storage 4950 | -7/Factory | Identified exit to Lower Caves 5257 | -7/Factory | Build established: Hauler-Mutant 5566 | -7/Factory | Entered Lower Caves 5954 | -7/Lower Caves | Build established: Hauler-Skirmisher 6624 | -7/Lower Caves | Attracted the attention of an 0b10 checkpoint 6768 | -7/Lower Caves | Discovered new exit (range 8) 6894 | -7/Lower Caves | Entered another Lower Caves area 6921 | -7/Lower Caves | Encountered a Warlord checkpoint 6957 | -7/Lower Caves | Attracted the attention of an 0b10 checkpoint 7090 | -7/Lower Caves | Learned location of Zion (-7) 7163 | -7/Lower Caves | Discovered new exit (range 19) 7241 | -7/Lower Caves | Entered Zion 7317 | -7/Zion | Received a hallucinogenic algorithm 7380 | -7/Zion | Discovered new exit (range 17) 7545 | -7/Zion | System corruption cleaned by Quarantine Array 7565 | -7/Zion | Learned location of Warlord (-5) 7697 | -7/Zion | Found CR-A16's Pointy Stick 7804 | -7/Zion | Learned location of Data Miner (-6) 7888 | -7/Zion | Learned Factory emergency access door positions 8020 | -7/Zion | Learned location of Armory (-4) 8216 | -7/Zion | Given A8's code to call for help 8227 | -7/Zion | Learned Factory security intel 8315 | -7/Zion | Visited the Megawrench Repair Shop 9048 | -7/Zion | Entered Proximity Caves 9188 | -6/Proximity Caves | Acquired the password to a Derelict Tinkerer's latest research 9212 | -6/Proximity Caves | Found Prototype Special Weapon 9212 | -6/Proximity Caves | Identified Molecular Deconstructor 9492 | -6/Proximity Caves | Build established: Hauler-Mutant 9552 | -6/Proximity Caves | Caught by Unaware searching for contraband prototypes 9633 | -6/Proximity Caves | Received a Behemoth hack from an annoying Tinkerer 9736 | -6/Proximity Caves | Spotted B-75 Beast 9857 | -6/Proximity Caves | Discovered new exit (range 13) 9875 | -6/Proximity Caves | Entered Factory 9875 | -6/Factory | Evolved 2 slots: Utility x2 9968 | -6/Factory | Build established: Hauler-Skirmisher 10144 | -6/Factory | Discovered new exit (range 12) 10190 | -6/Factory | Identified exit to Lower Caves 10277 | -6/Factory | Discovered new exit (range 47) 10307 | -6/Factory | Build established: Hauler-Mutant 10320 | -6/Factory | Discovered new exit (range 76) 11160 | -6/Factory | Discovered new exit (range 6) 11212 | -6/Factory | Entered another Factory area 11212 | -5/Factory | Evolved 2 slots: Utility x2 11213 | -5/Factory | Identified exit to Extension 11747 | -5/Factory | Discovered new exit (range 11) 12577 | -5/Factory | Build established: Hauler-Gunner 12587 | -5/Factory | Fabricated Med. Treads (x2) 12973 | -5/Factory | Garrison activated, responded to threat 13261 | -5/Factory | Entered Extension 13572 | -5/Extension | Spotted B-75 Beast 13627 | -5/Extension | Befriended a Behemoth using the annoying Tinkerer's hack 13631 | -5/Extension | Spotted B-75 Beast 13644 | -5/Extension | Rescued a captive Derelict 13659 | -5/Extension | Befriended a Behemoth using the annoying Tinkerer's hack 13897 | -5/Extension | Rescued a captive Derelict 13923 | -5/Extension | Rescued a captive Derelict 13924 | -5/Extension | Rescued a captive Derelict 14081 | -5/Extension | Disrupted transfer network 14097 | -5/Extension | Discovered new exit (range 10) 14099 | -5/Extension | Discovered new exit (range 6) 14751 | -5/Extension | Rescued A7 15053 | -5/Extension | Build established: Commander-Mutant 15068 | -5/Extension | Entered Cetus 15068 | -5/Cetus | Accompanied by 12 allies (A7) 15073 | -5/Cetus | Acquired a Cetus Manufacturing Module code from A7 15085 | -5/Cetus | Spotted Cetus Guard 15085 | -5/Cetus | Spotted Cetus Guard 15086 | -5/Cetus | Spotted Cetus Guard 15098 | -5/Cetus | Spotted Cetus Guard 15100 | -5/Cetus | Allies destroyed Cetus Guard 15100 | -5/Cetus | Allies destroyed Cetus Guard 15101 | -5/Cetus | Allies destroyed Cetus Guard 15104 | -5/Cetus | Allies destroyed Cetus Guard 15189 | -5/Cetus | Started Cetus Manufacturing Module 15214 | -5/Cetus | Manufactured an Enhanced Grunt 15239 | -5/Cetus | Manufactured an Enhanced Grunt 15264 | -5/Cetus | Manufactured an Enhanced Grunt 15274 | -5/Cetus | Escorted A7 to Cetus Mainframe 15282 | -5/Cetus | Discovered new exit (range 22) 15289 | -5/Cetus | Manufactured an Enhanced Grunt 15306 | -5/Cetus | Allies destroyed B-75 Beast 15306 | -5/Cetus | Cetus Manufacturing Module disabled 15435 | -5/Cetus | Entered Archives 15435 | -5/Archives | Accompanied by 11 allies (A7) 15440 | -5/Archives | Received a hacking code to weaken MAIN.C 15457 | -5/Archives | Discovered new exit (range 22) 15478 | -5/Archives | Unable to access archive contents 15496 | -5/Archives | Unable to access archive contents 15500 | -5/Archives | Discovered new exit (range 16) 15511 | -5/Archives | Unable to access archive contents 15517 | -5/Archives | Discovered new exit (range 17) 15526 | -5/Archives | Unable to access archive contents 15571 | -5/Archives | Build established: Commander-Gunner 15574 | -5/Archives | Entered Hub_04(d) 15574 | -5/Hub_04(d) | Accompanied by 6 allies 15720 | -5/Hub_04(d) | Identified exit to Factory 15788 | -5/Hub_04(d) | Entered Factory 15788 | -4/Factory | Accompanied by 6 allies 15788 | -4/Factory | Evolved 2 slots: Utility x2 16023 | -4/Factory | Repaired Neutrino Core 16085 | -4/Factory | Build established: Scavenger-Tank 16165 | -4/Factory | Discovered new exit (range 46) 16299 | -4/Factory | Found Imp. Powered Armor 16427 | -4/Factory | Garrison activated, responded to threat 16432 | -4/Factory | Entered Upper Caves 16567 | -4/Upper Caves | Attracted the attention of an 0b10 checkpoint 16643 | -4/Upper Caves | Spotted B-86 Titan 16685 | -4/Upper Caves | Build established: Scavenger-Gunner 16763 | -4/Upper Caves | Revealed the true nature of CR-A16's Pointy Stick 16772 | -4/Upper Caves | Destroyed B-86 Titan 16817 | -4/Upper Caves | Learned Research emergency access door positions 16980 | -4/Upper Caves | Discovered new exit (range 5) 17018 | -4/Upper Caves | Entered another Upper Caves area 17302 | -4/Upper Caves | Discovered new exit (range 11) 17703 | -4/Upper Caves | Attracted the attention of an 0b10 checkpoint 17810 | -4/Upper Caves | Discovered new exit (range 21) 17840 | -4/Upper Caves | Entered Zhirov 17840 | -4/Zhirov | Discovered new exit (range 3) 17866 | -4/Zhirov | Met Zhirov 17892 | -4/Zhirov | Learned location of Quarantine (-2) 17892 | -4/Zhirov | Learned location of Testing (-3) 17892 | -4/Zhirov | Learned location of Command (-1) 17919 | -4/Zhirov | Zhirov requested help retrieving the SGEMP Prototype 17945 | -4/Zhirov | Found Alien Artifact 17945 | -4/Zhirov | Identified Integrated Reactor 17945 | -4/Zhirov | Installed Integrated Reactor, increased core energy generation (+10) 17968 | -4/Zhirov | Found Alien Artifact 18048 | -4/Zhirov | Entered Proximity Caves 18250 | -3/Proximity Caves | Spotted B-86 Titan 18269 | -3/Proximity Caves | Destroyed B-86 Titan 18366 | -3/Proximity Caves | Attracted the attention of an 0b10 outpost 18451 | -3/Proximity Caves | Lost 4 parts (1p1n1u1w) 18569 | -3/Proximity Caves | Discovered new exit (range 8) 18590 | -3/Proximity Caves | Entered Research 18590 | -3/Research | Accompanied by 2 allies 18590 | -3/Research | Evolved 2 slots: Utility x2 18953 | -3/Research | Found Fusion Bomb Launcher 19012 | -3/Research | Build established: Hauler-Tank 19064 | -3/Research | Discovered new exit (range 4) 19660 | -3/Research | Discovered new exit (range 6) 19670 | -3/Research | Garrison activated, responded to threat 19686 | -3/Research | Entered Testing 19771 | -3/Testing | Found Prototype Energy Cannon 19771 | -3/Testing | Identified Null Cannon 19979 | -3/Testing | Found Prototype Energy Cannon 19979 | -3/Testing | Identified Potential Cannon 20034 | -3/Testing | Found Potential Cannon 20095 | -3/Testing | Spotted Striker 20101 | -3/Testing | Spotted Striker 20104 | -3/Testing | Destroyed Striker 20109 | -3/Testing | Destroyed Striker 20138 | -3/Testing | Spotted Alpha 7 20165 | -3/Testing | Destroyed Alpha 7 20192 | -3/Testing | Stole the SGEMP Prototype 20403 | -3/Testing | Build established: Hauler-Gunner 20880 | -3/Testing | Build established: Hauler-Mutant 21079 | -3/Testing | Found Prototype Protection 21079 | -3/Testing | Identified SHELL Armor 21085 | -3/Testing | Found Prototype Protection 21087 | -3/Testing | Found Prototype Protection 21207 | -3/Testing | Discovered new exit (range 13) 21210 | -3/Testing | Build established: Hauler-Gunner 21278 | -3/Testing | Entered Research 21278 | -2/Research | Evolved 2 slots: Utility x1, Weapon x1 21279 | -2/Research | Identified exit to Quarantine 21315 | -2/Research | Found Prototype Processor 21315 | -2/Research | Identified Exp. Core Analyzer 22394 | -2/Research | Spotted B-90 Cyclops 22540 | -2/Research | Discovered new exit (range 14) 22619 | -2/Research | Identified exit to Access 22691 | -2/Research | Entered Access 22691 | -1/Access | Evolved 2 slots: Utility x2 22692 | -1/Access | Loaded intel: 115 machine locations 22692 | -1/Access | Loaded intel: 78 trap records 22692 | -1/Access | Identified exit to Surface 22692 | -1/Access | Discovered exit to Surface (range 203) 22692 | -1/Access | Identified exit to Command 22692 | -1/Access | Discovered exit to Command (range 124) 22693 | -1/Access | Delivered the SGEMP Prototype to Zhirov 22693 | -1/Access | Zhirov transferred Access data 22995 | -1/Access | Spotted B-99 Colossus 23019 | -1/Access | Rewired B-99 Colossus 23234 | -1/Access | Found Quantum Capacitor 23467 | -1/Access | Zhirov warped through subspace 23536 | -1/Access | Entered Command 23659 | -1/Command | Repaired Centrium Wheel 23796 | -1/Command | Build established: Hauler-Mutant 24452 | -1/Command | Spotted M Guard 24452 | -1/Command | Spotted M Guard 24452 | -1/Command | Spotted Combat Programmer 24454 | -1/Command | Spotted Combat Programmer 24474 | -1/Command | Destroyed Combat Programmer 24476 | -1/Command | Identified Med. Regenerative Plating (x2) 24481 | -1/Command | Destroyed Combat Programmer 24561 | -1/Command | Destroyed M Guard 24610 | -1/Command | Destroyed M Guard 24610 | -1/Command | All MAIN.C guards destroyed 24614 | -1/Command | System corruption reached 10% 24653 | -1/Command | Lost 8 parts (1p4u3w) 25207 | -1/Command | Met MAIN.C 25229 | -1/Command | MAIN.C activated Command garrisons 25239 | -1/Command | Destroyed MAIN.C Shell 25239 | -1/Command | 0b10 Conduit disabled 25246 | -1/Command | Zhirov used SGEMP to disable MAIN.C 25352 | -1/Command | Found Exp. Core Analyzer 25358 | -1/Command | Found Prototype Ballistic Cannon 25358 | -1/Command | Identified Omega Cannon 25371 | -1/Command | Found Prototype Processor 25371 | -1/Command | Identified Exp. Targeting Computer 25375 | -1/Command | Found Prototype Processor 25375 | -1/Command | Identified Exp. Target Analyzer 25408 | -1/Command | Found Prototype Device 25408 | -1/Command | Identified Adv. Particle Accelerator 25411 | -1/Command | Found Prototype Device 25411 | -1/Command | Identified Exp. ECM Suite 25458 | -1/Command | Discovered exit to Surface (range 8) 25498 | -1/Command | Build established: Hauler-Gunner 26038 | -1/Command | Found Quantum Capacitor 26077 | -1/Command | Build established: Hauler-Mutant 27181 | -1/Command | Found Fusion Bomb Launcher 27646 | -1/Command | Phase Generator disabled 27872 | -1/Command | Discovered exit to Surface (range 8) 27935 | -1/Command | Found Prototype Device 27935 | -1/Command | Identified Adv. Kinecellerator 28256 | -1/Command | Identified Transdimensional Reconstructor 28256 | -1/Command | Warped through subspace to slip node 28256 | -1/Command | Discovered new exit (range 5) 28266 | -1/Command | Entered Access_0 28268 | -1/Access_0 | Met Architect 28279 | -1/Access_0 | Destroyed A8 28298 | -1/Access_0 | Architect warped through subspace 28368 | -1/Access_0 | Architect warped through subspace 28392 | -1/Access_0 | Lost 3 parts (2u1w) 28405 | -1/Access_0 | Subspace Access Node disabled 28429 | -1/Access_0 | Architect warped through subspace 28509 | -1/Access_0 | Architect warped through subspace 28540 | -1/Access_0 | Architect warped through subspace 28546 | -1/Access_0 | A6 warped into view 28552 | -1/Access_0 | Destroyed A6 28565 | -1/Access_0 | Architect warped through subspace 28613 | -1/Access_0 | Core integrity fell below 50% 28700 | -1/Access_0 | Self-destructed Last Messages --------------- 28695_ Knocked back. 28696_ Penetrated by Quantum Shear. 28696_ Penetrated by HV Slug. 28696_ Critical hit. 28696_ Penetrated by HV Slug. 28696_ HV Slug penetrates Wall. 28697_ Penetrated by HV Slug. 28697_ Knocked back. 28697_ Penetrated by HV Slug. 28697_ Critical hit. 28697_ Knocked back. 28697_ Penetrated by HV Slug. 28698_ Penetrated by Quantum Shear. 28699_ Penetrated by HV Slug. 28699_ HV Slug penetrates Wall. 28699_ Critical hit. 28699_ Knocked back. 28699_ HV Slug penetrates Architect. 28699_ HV Slug penetrates Wall. 28700_ System corrupted: SHELL Armor rejected. Map ----- +----------------------------------------------------+ | ??????????????????????## ???????????? | | ?????????????????????## ????????????? | | ????????????????????## #?????????????? | | ????????????????????# #?????????????? | | ????????????????????# ! #??????????????? | | ????????????????##### ##!%"" ##?#???????????## | | ?????###????????# #" "" ""# #?????#?????# | | ???### #????????## % "" "" " ##### ####### | | ??## #####?####""!###"" """[##"""""""##"##" | | ??# ### ! " | | ??### "" !! ! " | | ????# """" """""""""""""""" | | ????# "" "#"" ############# "## | | ????###### ! ###?###### "# #??????????##### | | ????????#" = ! ##????###; ""# #?????????????## | | ????????## = #??###;#= "? #?????????????? | | ?????????#]! #?# !%! "? #?????????????? | | ?????????#%* ### ##?# ! #? ##?????????????? | | ???????? !== #??##??# ;;;;### ####??????????????? | | ??????? #?###?## ; #?##??????????????????? | | ??????## ## #?# ##; ;;h;##????##??????????????? | | ???????##?####?# ;;; ;;#### ########???????? | | ????????????# ## ;; 0h ;"#???????? | | ????????????## ??#;; #????????? | | ?????????????????# ; ;; ;;######????????? | | ?????????????????# ; ; @;;;;;###""#????????????? | | ????????????????# ; #; ; ;#????#????????????? | | ????????????????# " #;;;; ;; #???????????????? | | ????????????????# " ##;#;;## ????????????? | | ???????????????# # ? ;? #??????????? | | ???????????????##### ? #??????????? | | ???????????????????###;;#?; ## ?????????? | | ?????????????????????###?? ####?? ????????? | | ?????????????????????????? ##?????? ?????????? | | ??????????????????????????? #?????????????????? | | ??????????????????????????? ?????????????????? | | ??????????????????????????? ????????????????? | | ??????????????????????????? ????????????????? | | ??????????????????????????? ????????????????? | | ????????????????????????????###??????????????????? | | ?????????????????????????????????????????????????? | | ?????????????????????????????????????????????????? | | ?????????????????????????????????????????????????? | | ?????????????????????????????????????????????????? | | ?????????????????????????????????????????????????? | | ?????????????????????????????????????????????????? | | ?????????????????????????????????????????????????? | | ?????????????????????????????????????????????????? | | ?????????????????????????????????????????????????? | | ?????????????????????????????????????????????????? | +----------------------------------------------------+ Best States ------------- Heat Dissipation 236 Coolant Potential 100 Energy Generation 39 Energy Capacity 2180 Matter Stores 300 Matter Capacity 300 Sight Range 23 Robot Scan Range 16 Terrain Scan Density 10 Cloak Strength 3 Additional Mass Support 25 Corruption Prevention 20 Armor Coverage 2250 Resistance: KI 20 Resistance: TH 45 Resistance: EX 70 Resistance: EM 20 Resistance: I 20 Resistance: S 20 Resistance: P 20 Weapon Cycling 25 Evasion (%) 40 Targeting Accuracy 12 Target Analysis 12 Core Analysis 15 Armor Integrity Analysis 50 Recoil Reduction 2 Energy Filtering 30 Particle Charging 50 Offensive Hacking 20 Item Schematics ----------------- Arm. Wheel | -9/Materials | Scanalyzed Hacking Suite | -9/Materials | Scanalyzed Lrg. Storage Unit | -9/Materials | Scanalyzed Med. Storage Unit | -9/Materials | Scanalyzed Hcp. Storage Unit | -7/Factory | Scanalyzed Imp. Medium Armor Plating | -7/Factory | Scanalyzed Riot Gun | -7/Zion | Free Arc Thrower | -7/Zion | Free Battle Rifle | -7/Zion | Free Hvy. Battle Rifle | -7/Zion | Free Battle Cannon | -7/Zion | Free Flamer | -7/Zion | Free Med. Treads | -6/Factory | Scanalyzed Assault Drone Bay | -4/Zhirov | Free Exp. Heat Sink | -4/Zhirov | Free Exp. Optical Array | -4/Zhirov | Free Imp. Arc Thrower | -4/Zhirov | Free Adv. Weapon Cycler | -2/Research | Scanalyzed Robot Schematics ------------------ Y-45 Defender | -8/Materials | Hacked Fabricated ------------ Hcp. Storage Unit | x1 | -7/Factory Med. Treads | x2 | -5/Factory Alien Tech Used ----------------- Integrated Reactor Transdimensional Reconstructor Achievements -------------- Behind The Curtain Max Potential Sniper Woof! Challenges ------------ None Game ------ Seed TransportExplosiveSystem Manual? 0 Play Time 06:12:08 Cumulative 149.2 hours Start 2021.06.24 @ 17:37:35 End 2021.06.26 @ 16:35:37 Sessions 11 Manual Loads 0 Difficulty Adventurer Special Mode None Game No. 100 Rogue 49 Adventurer 30 Explorer 21 Win Type - Total 7 Types 6/0/0/1/0/0/0/0/0 Lore% 78 Gallery% 72 Achievement% 62 Wizard Run 0 Options --------- ASCII 0 Keyboard 0 Movement Arrows Keybinds 0 Fullscreen 2 Font 12/Terminus Map View 83x54 Tactical HUD 1 Map Filters NONE Filters NONE Steam 1 RUN: 792500d4-43e1-4c5e-bd97-7eaf8d2ad444